[Event "Late-Titled-Tuesday-Blitz-February-13-2024"]
[Site "Chess.com"]
[Date "2024.02.13"]
[Round "4"]
[White "FontVella8"]
[Black "subham777"]
[Result "0-1"]
[WhiteElo "2702"]
[BlackElo "2527"]
[TimeControl "180+1"]
[EndTime "14:39:00 PST"]
[Termination "subham777 won by checkmate"]

1. e4 {[%clk 0:03:00.9]} 1... e6 {[%clk 0:02:57.6]} 2. d4 {[%clk 0:02:54.1]}
2... d5 {[%clk 0:02:56.7]} 3. Nc3 {[%clk 0:02:53.5]} 3... Nf6 {[%clk 0:02:56.3]}
4. e5 {[%clk 0:02:53.7]} 4... Nfd7 {[%clk 0:02:56.2]} 5. f4 {[%clk 0:02:54.4]}
5... c5 {[%clk 0:02:56.6]} 6. Nf3 {[%clk 0:02:54.9]} 6... Nc6 {[%clk 0:02:57.1]}
7. Be3 {[%clk 0:02:55.5]} 7... Be7 {[%clk 0:02:56.7]} 8. Qd2 {[%clk 0:02:55.8]}
8... a6 {[%clk 0:02:57.1]} 9. dxc5 {[%clk 0:02:51.4]} 9... Bxc5 {[%clk
0:02:55.8]} 10. O-O-O {[%clk 0:02:50.3]} 10... b5 {[%clk 0:02:53.3]} 11. Kb1
{[%clk 0:02:30.4]} 11... Qa5 {[%clk 0:02:47.1]} 12. Bxc5 {[%clk 0:02:19.8]}
12... Nxc5 {[%clk 0:02:43.8]} 13. Qe3 {[%clk 0:02:18.7]} 13... b4 {[%clk
0:02:38.5]} 14. Nxd5 {[%clk 0:02:18.9]} 14... exd5 {[%clk 0:02:04.9]} 15. Rxd5
{[%clk 0:02:15.7]} 15... Be6 {[%clk 0:02:03.5]} 16. Rxc5 {[%clk 0:02:07.4]}
16... Qxa2+ {[%clk 0:02:02.1]} 17. Kc1 {[%clk 0:02:07.2]} 17... Rd8 {[%clk
0:01:51.8]} 18. Bd3 {[%clk 0:01:40.6]} 18... Qa1+ {[%clk 0:01:46.3]} 19. Kd2
{[%clk 0:01:41]} 19... Qxh1 {[%clk 0:01:46.6]} 20. Rxc6 {[%clk 0:01:28.8]} 20...
Qxg2+ {[%clk 0:01:45]} 21. Qe2 {[%clk 0:01:29.3]} 21... Qg4 {[%clk 0:01:17.3]}
22. Rxa6 {[%clk 0:00:58.5]} 22... b3 {[%clk 0:00:55.7]} 23. Ke3 {[%clk
0:00:41.5]} 23... O-O {[%clk 0:00:43.6]} 24. Ra4 {[%clk 0:00:18.7]} 24... Bf5
{[%clk 0:00:15.7]} 25. Bxf5 {[%clk 0:00:13.8]} 25... Qxf5 {[%clk 0:00:15.6]} 26.
cxb3 {[%clk 0:00:14.3]} 26... Rfe8 {[%clk 0:00:11.9]} 27. Re4 {[%clk 0:00:13.3]}
27... Rb8 {[%clk 0:00:09.9]} 28. Nd4 {[%clk 0:00:12.3]} 28... Qh3+ {[%clk
0:00:09.2]} 29. Kd2 {[%clk 0:00:11.5]} 29... Red8 {[%clk 0:00:07.8]} 30. Kc2
{[%clk 0:00:08.2]} 30... Rbc8+ {[%clk 0:00:06.9]} 31. Kb1 {[%clk 0:00:08.3]}
31... Ra8 {[%clk 0:00:03.8]} 32. f5 {[%clk 0:00:07]} 32... Qh6 {[%clk
0:00:02.9]} 33. e6 {[%clk 0:00:06.1]} 33... fxe6 {[%clk 0:00:02.3]} 34. Rxe6
{[%clk 0:00:06]} 34... Qg5 {[%clk 0:00:01.8]} 35. f6 {[%clk 0:00:03.8]} 35...
Qg1+ {[%clk 0:00:02.2]} 36. Kc2 {[%clk 0:00:03.7]} 36... Qxd4 {[%clk 0:00:02.7]}
37. f7+ {[%clk 0:00:02.3]} 37... Kf8 {[%clk 0:00:02]} 38. Re7 {[%clk 0:00:01.7]}
38... Qc5+ {[%clk 0:00:01.4]} 39. Kb1 {[%clk 0:00:02.6]} 39... Qxe7 {[%clk
0:00:02]} 40. Qc4 {[%clk 0:00:02.5]} 40... Qxf7 {[%clk 0:00:02.7]} 41. Qc5+
{[%clk 0:00:02.3]} 41... Qe7 {[%clk 0:00:03.6]} 42. b4 {[%clk 0:00:03]} 42...
Qxc5 {[%clk 0:00:03.3]} 43. bxc5 {[%clk 0:00:03.9]} 43... Rab8 {[%clk
0:00:03.5]} 44. c6 {[%clk 0:00:03]} 44... Rdc8 {[%clk 0:00:03.9]} 45. c7 {[%clk
0:00:03.9]} 45... Rxc7 {[%clk 0:00:04.4]} 46. Ka2 {[%clk 0:00:03]} 46... Rcb7
{[%clk 0:00:05.3]} 47. b3 {[%clk 0:00:03.1]} 47... Rxb3 {[%clk 0:00:05.9]} 48.
Ka1 {[%clk 0:00:03.5]} 48... R3b6 {[%clk 0:00:06.1]} 49. h4 {[%clk 0:00:02.5]}
49... Ra8# {[%clk 0:00:07]} 0-1

[Event "Late-Titled-Tuesday-Blitz-February-13-2024"]
[Site "Chess.com"]
[Date "2024.02.13"]
[Round "4"]
[White "Championnn-9"]
[Black "Jahonas"]
[Result "0-1"]
[WhiteElo "2524"]
[BlackElo "2380"]
[TimeControl "180+1"]
[EndTime "14:39:00 PST"]
[Termination "Jahonas won by resignation"]

1. e4 {[%clk 0:03:00.9]} 1... c6 {[%clk 0:02:59.5]} 2. Nc3 {[%clk 0:03:00.2]}
2... d5 {[%clk 0:02:59.9]} 3. exd5 {[%clk 0:03:00.9]} 3... cxd5 {[%clk
0:02:59.9]} 4. d4 {[%clk 0:03:01.8]} 4... Nc6 {[%clk 0:03:00.2]} 5. Bf4 {[%clk
0:03:02.5]} 5... a6 {[%clk 0:02:56.8]} 6. Nf3 {[%clk 0:03:02.7]} 6... Nf6 {[%clk
0:02:56.5]} 7. Ne5 {[%clk 0:03:03.1]} 7... Qb6 {[%clk 0:02:51.5]} 8. Nxc6 {[%clk
0:03:01.4]} 8... Qxc6 {[%clk 0:02:49.4]} 9. Be2 {[%clk 0:02:56.2]} 9... Bf5
{[%clk 0:02:46.8]} 10. O-O {[%clk 0:02:55.6]} 10... e6 {[%clk 0:02:47]} 11. a4
{[%clk 0:02:50.3]} 11... Be7 {[%clk 0:02:29]} 12. Qd2 {[%clk 0:02:44.3]} 12...
O-O {[%clk 0:02:25.2]} 13. Qe3 {[%clk 0:02:34.7]} 13... Bb4 {[%clk 0:02:13.2]}
14. Bd3 {[%clk 0:02:30.6]} 14... Bxc3 {[%clk 0:02:09.3]} 15. bxc3 {[%clk
0:02:23.3]} 15... Qxc3 {[%clk 0:02:03.4]} 16. Bxf5 {[%clk 0:02:23.1]} 16... Qxe3
{[%clk 0:02:02.8]} 17. Bxh7+ {[%clk 0:02:23.6]} 17... Kxh7 {[%clk 0:02:01.5]}
18. Bxe3 {[%clk 0:02:23.5]} 18... Rfc8 {[%clk 0:01:57.3]} 19. Rab1 {[%clk
0:02:24.1]} 19... b5 {[%clk 0:01:56.2]} 20. axb5 {[%clk 0:02:23.1]} 20... axb5
{[%clk 0:01:56.4]} 21. Rxb5 {[%clk 0:02:22.4]} 21... Rxc2 {[%clk 0:01:56.3]} 22.
Rb7 {[%clk 0:02:20]} 22... Kg6 {[%clk 0:01:55.6]} 23. h3 {[%clk 0:02:17.6]}
23... Raa2 {[%clk 0:01:48.2]} 24. g4 {[%clk 0:02:02.7]} 24... Ne4 {[%clk
0:01:46.6]} 25. Kg2 {[%clk 0:02:01.6]} 25... Nd6 {[%clk 0:01:43.4]} 26. Rd7
{[%clk 0:01:54.6]} 26... Nc4 {[%clk 0:01:41.1]} 27. Bf4 {[%clk 0:01:55.2]} 27...
Nd2 {[%clk 0:01:35.5]} 28. Bxd2 {[%clk 0:01:36.9]} 28... Rxd2 {[%clk 0:01:35.1]}
29. h4 {[%clk 0:01:25.8]} 29... Rxd4 {[%clk 0:01:28.1]} 30. Kg3 {[%clk
0:01:24.2]} 30... Ra3+ {[%clk 0:01:25.5]} 31. f3 {[%clk 0:01:24.7]} 31... Rdd3
{[%clk 0:01:17.8]} 32. h5+ {[%clk 0:01:18]} 32... Kf6 {[%clk 0:01:10.2]} 33. Rf2
{[%clk 0:01:10.9]} 33... e5 {[%clk 0:01:05.3]} 34. Rb7 {[%clk 0:01:06.7]} 34...
e4 {[%clk 0:01:01.1]} 35. Rb6+ {[%clk 0:01:06.5]} 35... Ke5 {[%clk 0:00:59.1]}
36. g5 {[%clk 0:01:00.7]} 36... Rxf3+ {[%clk 0:00:58.7]} 37. Rxf3 {[%clk
0:01:00.5]} 37... Rxf3+ {[%clk 0:00:58.6]} 38. Kg4 {[%clk 0:01:00.6]} 38... Rf1
{[%clk 0:00:56.7]} 39. h6 {[%clk 0:00:56.3]} 39... Rg1+ {[%clk 0:00:55.6]} 40.
Kh4 {[%clk 0:00:54.8]} 40... Rh1+ {[%clk 0:00:53.1]} 41. Kg4 {[%clk 0:00:50.7]}
41... f5+ {[%clk 0:00:48.9]} 42. Kg3 {[%clk 0:00:45.5]} 42... gxh6 {[%clk
0:00:47.7]} 43. gxh6 {[%clk 0:00:37.5]} 43... f4+ {[%clk 0:00:43.3]} 44. Kg2
{[%clk 0:00:37.1]} 44... Rh5 {[%clk 0:00:42.1]} 45. Kf2 {[%clk 0:00:34.8]} 45...
Kf5 {[%clk 0:00:35.2]} 46. Rd6 {[%clk 0:00:31.8]} 46... Kg4 {[%clk 0:00:34]} 47.
Rg6+ {[%clk 0:00:30.6]} 47... Kf5 {[%clk 0:00:33.1]} 48. Rd6 {[%clk 0:00:31]}
48... Ke5 {[%clk 0:00:32.9]} 49. Rb6 {[%clk 0:00:31.6]} 49... f3 {[%clk
0:00:29.1]} 50. Ra6 {[%clk 0:00:30.2]} 50... Kf4 {[%clk 0:00:26.4]} 51. Rf6+
{[%clk 0:00:29.9]} 51... Kg5 {[%clk 0:00:26.5]} 52. Rd6 {[%clk 0:00:30.1]} 52...
Rxh6 {[%clk 0:00:26.3]} 53. Rxd5+ {[%clk 0:00:29.9]} 53... Kf4 {[%clk
0:00:26.6]} 54. Rd4 {[%clk 0:00:30.5]} 54... Rh2+ {[%clk 0:00:26.2]} 55. Kg1
{[%clk 0:00:31.1]} 55... Ra2 {[%clk 0:00:25.7]} 56. Rb4 {[%clk 0:00:30]} 56...
Kg3 {[%clk 0:00:24.3]} 57. Rb1 {[%clk 0:00:30.3]} 57... Rh2 {[%clk 0:00:22.5]}
58. Rb3 {[%clk 0:00:28.4]} 58... Rg2+ {[%clk 0:00:18.7]} 59. Kh1 {[%clk
0:00:27.5]} 59... Rd2 {[%clk 0:00:17.7]} 60. Rb1 {[%clk 0:00:24.1]} 60... Rh2+
{[%clk 0:00:17]} 61. Kg1 {[%clk 0:00:24.7]} 61... f2+ {[%clk 0:00:17.2]} 62. Kf1
{[%clk 0:00:25.6]} 62... Rh1+ {[%clk 0:00:17.6]} 63. Ke2 {[%clk 0:00:26.5]}
63... Rxb1 {[%clk 0:00:16.3]} 0-1

[Event "Late-Titled-Tuesday-Blitz-February-13-2024"]
[Site "Chess.com"]
[Date "2024.02.13"]
[Round "4"]
[White "FM_Kappeler"]
[Black "protectiago"]
[Result "1-0"]
[WhiteElo "2264"]
[BlackElo "2107"]
[TimeControl "180+1"]
[EndTime "14:39:02 PST"]
[Termination "FM_Kappeler won on time"]

1. c4 {[%clk 0:03:00.9]} 1... Nf6 {[%clk 0:02:58.9]} 2. Nf3 {[%clk 0:03:00.1]}
2... c5 {[%clk 0:02:59]} 3. g3 {[%clk 0:02:59]} 3... Nc6 {[%clk 0:02:59]} 4. Bg2
{[%clk 0:02:58.7]} 4... e6 {[%clk 0:02:59.5]} 5. O-O {[%clk 0:02:57.7]} 5... d5
{[%clk 0:02:59.7]} 6. cxd5 {[%clk 0:02:56.8]} 6... Nxd5 {[%clk 0:02:59.8]} 7. d4
{[%clk 0:02:53.5]} 7... cxd4 {[%clk 0:02:52.4]} 8. Nxd4 {[%clk 0:02:53]} 8...
Bd7 {[%clk 0:02:42]} 9. a3 {[%clk 0:02:34.3]} 9... Bc5 {[%clk 0:02:41]} 10. Nb5
{[%clk 0:02:19.9]} 10... Nce7 {[%clk 0:02:23.1]} 11. N1c3 {[%clk 0:02:08.2]}
11... O-O {[%clk 0:02:15.6]} 12. b4 {[%clk 0:01:38.1]} 12... Bxb5 {[%clk
0:01:17.6]} 13. Nxb5 {[%clk 0:01:37.4]} 13... Bb6 {[%clk 0:01:16.3]} 14. Bb2
{[%clk 0:01:33.3]} 14... a6 {[%clk 0:01:08.4]} 15. Nd4 {[%clk 0:01:32.6]} 15...
Nc6 {[%clk 0:01:03]} 16. Nxc6 {[%clk 0:01:30.2]} 16... bxc6 {[%clk 0:01:02.5]}
17. Rc1 {[%clk 0:01:29.9]} 17... Rc8 {[%clk 0:01:02]} 18. Qd3 {[%clk 0:01:27.7]}
18... a5 {[%clk 0:00:57.2]} 19. Rfd1 {[%clk 0:01:10.2]} 19... axb4 {[%clk
0:00:56.4]} 20. axb4 {[%clk 0:01:09.8]} 20... Nxb4 {[%clk 0:00:54.8]} 21. Qc3
{[%clk 0:01:08.8]} 21... Qg5 {[%clk 0:00:39.9]} 22. Qxb4 {[%clk 0:01:05.9]}
22... Rb8 {[%clk 0:00:39.8]} 23. Qc3 {[%clk 0:00:55.7]} 23... Ba5 {[%clk
0:00:33]} 24. Qc2 {[%clk 0:00:46]} 24... c5 {[%clk 0:00:25.2]} 25. Bc3 {[%clk
0:00:41.2]} 25... Bb6 {[%clk 0:00:22.9]} 26. Rb1 {[%clk 0:00:37.4]} 26... h5
{[%clk 0:00:16.4]} 27. h4 {[%clk 0:00:36.4]} 27... Qg4 {[%clk 0:00:15.8]} 28.
Bf3 {[%clk 0:00:35]} 28... Qc4 {[%clk 0:00:12.4]} 29. Qd3 {[%clk 0:00:31.5]}
29... Qxd3 {[%clk 0:00:11.8]} 30. Rxd3 {[%clk 0:00:30.9]} 30... c4 {[%clk
0:00:12.2]} 31. Rdd1 {[%clk 0:00:25]} 31... g6 {[%clk 0:00:11.9]} 32. Kg2 {[%clk
0:00:24.7]} 32... Rfc8 {[%clk 0:00:10.9]} 33. Be5 {[%clk 0:00:23.5]} 33... Bc7
{[%clk 0:00:09.1]} 34. Bxc7 {[%clk 0:00:21.3]} 34... Rxb1 {[%clk 0:00:08.2]} 35.
Rxb1 {[%clk 0:00:20.5]} 35... Rxc7 {[%clk 0:00:08.9]} 36. Rc1 {[%clk 0:00:19.6]}
36... Kg7 {[%clk 0:00:08.7]} 37. Rc3 {[%clk 0:00:18.9]} 37... Kf6 {[%clk
0:00:08.9]} 38. e3 {[%clk 0:00:18.3]} 38... Ke5 {[%clk 0:00:08.5]} 39. Kf1
{[%clk 0:00:17.8]} 39... f5 {[%clk 0:00:07.5]} 40. Ke2 {[%clk 0:00:17.1]} 40...
Kd6 {[%clk 0:00:07.3]} 41. Kd2 {[%clk 0:00:16.6]} 41... e5 {[%clk 0:00:07.4]}
42. Be2 {[%clk 0:00:15.7]} 42... Kd5 {[%clk 0:00:07.7]} 43. Kc2 {[%clk
0:00:14.8]} 43... e4 {[%clk 0:00:06.4]} 44. Ra3 {[%clk 0:00:14.3]} 44... Rb7
{[%clk 0:00:04.4]} 45. Ra5+ {[%clk 0:00:13.1]} 45... Kd6 {[%clk 0:00:03.2]} 46.
Bxc4 {[%clk 0:00:12.5]} 46... Rc7 {[%clk 0:00:03.6]} 47. Kc3 {[%clk 0:00:11.4]}
47... Ke7 {[%clk 0:00:02]} 48. Ra6 {[%clk 0:00:10.6]} 1-0

[Event "Late-Titled-Tuesday-Blitz-February-13-2024"]
[Site "Chess.com"]
[Date "2024.02.13"]
[Round "4"]
[White "pfalcon1949"]
[Black "jinxy2009"]
[Result "0-1"]
[WhiteElo "1944"]
[BlackElo "2233"]
[TimeControl "180+1"]
[EndTime "14:39:03 PST"]
[Termination "jinxy2009 won on time"]

1. e4 {[%clk 0:03:00.9]} 1... c5 {[%clk 0:02:57.3]} 2. Nf3 {[%clk 0:02:59.7]}
2... Nc6 {[%clk 0:02:49.9]} 3. d4 {[%clk 0:02:58.3]} 3... cxd4 {[%clk
0:02:50.8]} 4. Nxd4 {[%clk 0:02:57.6]} 4... Nf6 {[%clk 0:02:43.1]} 5. Nc3 {[%clk
0:02:56.9]} 5... e5 {[%clk 0:02:43.7]} 6. Ndb5 {[%clk 0:02:54.1]} 6... d6 {[%clk
0:02:44]} 7. Bg5 {[%clk 0:02:48.1]} 7... a6 {[%clk 0:02:42]} 8. Na3 {[%clk
0:02:47.1]} 8... b5 {[%clk 0:02:42.1]} 9. Nd5 {[%clk 0:02:47]} 9... Be7 {[%clk
0:02:42.5]} 10. Bxf6 {[%clk 0:02:46.5]} 10... Bxf6 {[%clk 0:02:43.4]} 11. c4
{[%clk 0:02:44.9]} 11... b4 {[%clk 0:02:42.1]} 12. Nc2 {[%clk 0:02:44.9]} 12...
O-O {[%clk 0:02:42.6]} 13. g3 {[%clk 0:02:41.7]} 13... Bg5 {[%clk 0:02:35]} 14.
Bg2 {[%clk 0:02:40.4]} 14... Rb8 {[%clk 0:02:26.5]} 15. b3 {[%clk 0:02:37.2]}
15... Be6 {[%clk 0:02:20.1]} 16. h4 {[%clk 0:02:37.1]} 16... Bh6 {[%clk
0:02:19.2]} 17. O-O {[%clk 0:02:36.8]} 17... a5 {[%clk 0:02:19.1]} 18. Qe2
{[%clk 0:02:31.1]} 18... Ne7 {[%clk 0:01:59.6]} 19. Nce3 {[%clk 0:02:24.9]}
19... f5 {[%clk 0:01:51.3]} 20. Nxe7+ {[%clk 0:02:21.2]} 20... Qxe7 {[%clk
0:01:50.3]} 21. exf5 {[%clk 0:02:19.8]} 21... Bxe3 {[%clk 0:01:44.6]} 22. fxe6
{[%clk 0:02:06.5]} 22... Bd4 {[%clk 0:01:42.8]} 23. Rad1 {[%clk 0:02:03.9]}
23... Bc5 {[%clk 0:01:30.3]} 24. Kh2 {[%clk 0:02:00.6]} 24... Rf6 {[%clk
0:01:26.5]} 25. Bd5 {[%clk 0:01:51.8]} 25... Rbf8 {[%clk 0:01:25.8]} 26. f3
{[%clk 0:01:36.9]} 26... Rh6 {[%clk 0:01:21.2]} 27. Qe4 {[%clk 0:01:35.3]} 27...
Rf4 {[%clk 0:01:15.6]} 28. Qe1 {[%clk 0:01:07.3]} 28... Rf5 {[%clk 0:00:31.5]}
29. Kg2 {[%clk 0:00:52.5]} 29... g5 {[%clk 0:00:21.4]} 30. hxg5 {[%clk
0:00:45.2]} 30... Rxg5 {[%clk 0:00:20.5]} 31. Rh1 {[%clk 0:00:44.6]} 31... Rhg6
{[%clk 0:00:20.2]} 32. g4 {[%clk 0:00:43.5]} 32... h5 {[%clk 0:00:20.4]} 33. Qh4
{[%clk 0:00:33.4]} 33... Rxg4+ {[%clk 0:00:20.5]} 34. fxg4 {[%clk 0:00:25.4]}
34... Rxg4+ {[%clk 0:00:20.7]} 35. Qxg4+ {[%clk 0:00:24.4]} 35... hxg4 {[%clk
0:00:21.6]} 36. Rh5 {[%clk 0:00:20.6]} 36... Qe8 {[%clk 0:00:12.4]} 37. Rdh1
{[%clk 0:00:19.5]} 37... Kg7 {[%clk 0:00:11.6]} 38. Rh7+ {[%clk 0:00:18.4]}
38... Kg6 {[%clk 0:00:11.4]} 39. Be4+ {[%clk 0:00:16.3]} 39... Kg5 {[%clk
0:00:11.2]} 40. Kg3 {[%clk 0:00:13.2]} 40... Bf2+ {[%clk 0:00:04.3]} 41. Kxf2
{[%clk 0:00:11.6]} 41... Kf4 {[%clk 0:00:03.9]} 42. Rf7+ {[%clk 0:00:10.4]}
42... Kxe4 {[%clk 0:00:03.8]} 43. Rhh7 {[%clk 0:00:09.9]} 43... Qxe6 {[%clk
0:00:03.4]} 44. Kg3 {[%clk 0:00:06.9]} 44... Kd3 {[%clk 0:00:03.3]} 45. Re7
{[%clk 0:00:02.6]} 45... Qf5 {[%clk 0:00:03.3]} 46. Rhf7 {[%clk 0:00:02.7]}
46... Qe4 {[%clk 0:00:03.6]} 0-1

[Event "Late-Titled-Tuesday-Blitz-February-13-2024"]
[Site "Chess.com"]
[Date "2024.02.13"]
[Round "4"]
[White "jcibarra"]
[Black "LLRChess"]
[Result "1-0"]
[WhiteElo "2929"]
[BlackElo "2590"]
[TimeControl "180+1"]
[EndTime "14:39:04 PST"]
[Termination "jcibarra won by resignation"]

1. e4 {[%clk 0:03:00.9]} 1... c5 {[%clk 0:03:00]} 2. Nf3 {[%clk 0:03:00]} 2...
d6 {[%clk 0:03:00.5]} 3. c3 {[%clk 0:02:59.8]} 3... Nf6 {[%clk 0:03:00.3]} 4. h3
{[%clk 0:03:00]} 4... g6 {[%clk 0:03:00.3]} 5. Bd3 {[%clk 0:03:00.1]} 5... d5
{[%clk 0:02:50.8]} 6. e5 {[%clk 0:02:57.8]} 6... c4 {[%clk 0:02:51.3]} 7. Bc2
{[%clk 0:02:53.9]} 7... Ne4 {[%clk 0:02:50.5]} 8. O-O {[%clk 0:02:49.2]} 8...
Bg7 {[%clk 0:02:48.9]} 9. b3 {[%clk 0:02:43]} 9... cxb3 {[%clk 0:02:44.6]} 10.
axb3 {[%clk 0:02:42.9]} 10... Nc5 {[%clk 0:02:33.9]} 11. d4 {[%clk 0:02:41.1]}
11... Ne6 {[%clk 0:02:25.9]} 12. Nh2 {[%clk 0:02:40.8]} 12... O-O {[%clk
0:02:18.3]} 13. f4 {[%clk 0:02:40.8]} 13... f6 {[%clk 0:02:18.2]} 14. Be3 {[%clk
0:01:58.3]} 14... fxe5 {[%clk 0:02:13.1]} 15. dxe5 {[%clk 0:01:48.8]} 15... Nc6
{[%clk 0:02:13.3]} 16. b4 {[%clk 0:01:41]} 16... d4 {[%clk 0:02:12.9]} 17. cxd4
{[%clk 0:01:36.3]} 17... Ncxd4 {[%clk 0:02:08]} 18. Be4 {[%clk 0:01:32.9]} 18...
Nf5 {[%clk 0:01:57.4]} 19. Qe1 {[%clk 0:01:21.1]} 19... Nxe3 {[%clk 0:01:54.4]}
20. Qxe3 {[%clk 0:01:22]} 20... Qd4 {[%clk 0:01:53]} 21. Qxd4 {[%clk 0:01:18]}
21... Nxd4 {[%clk 0:01:53.9]} 22. Nc3 {[%clk 0:01:16.4]} 22... Be6 {[%clk
0:01:33.1]} 23. Bxb7 {[%clk 0:01:07.4]} 23... Rab8 {[%clk 0:01:28.8]} 24. Rxa7
{[%clk 0:01:07.7]} 24... Rfd8 {[%clk 0:01:16.2]} 25. Rfa1 {[%clk 0:00:48.6]}
25... Nc2 {[%clk 0:01:13.7]} 26. R1a6 {[%clk 0:00:44.9]} 26... Bb3 {[%clk
0:00:49.4]} 27. b5 {[%clk 0:00:33.4]} 27... g5 {[%clk 0:00:47.7]} 28. Nf3 {[%clk
0:00:14.5]} 28... gxf4 {[%clk 0:00:45.8]} 29. b6 {[%clk 0:00:12.5]} 29... Nb4
{[%clk 0:00:40.2]} 30. Ra3 {[%clk 0:00:11.1]} 30... Bc4 {[%clk 0:00:32]} 31.
R3a4 {[%clk 0:00:08.9]} 31... Nd3 {[%clk 0:00:22.3]} 32. Rxc4 {[%clk 0:00:08.6]}
32... Nxe5 {[%clk 0:00:22.6]} 33. Nxe5 {[%clk 0:00:08.1]} 33... Bxe5 {[%clk
0:00:23.5]} 34. Bd5+ {[%clk 0:00:08]} 34... Kf8 {[%clk 0:00:20.9]} 35. b7 {[%clk
0:00:04.7]} 35... e6 {[%clk 0:00:09.2]} 36. Be4 {[%clk 0:00:04.9]} 36... Bd4+
{[%clk 0:00:09.2]} 37. Rxd4 {[%clk 0:00:05.4]} 37... Rxd4 {[%clk 0:00:10.1]} 38.
Ra8 {[%clk 0:00:06.1]} 38... Rdd8 {[%clk 0:00:10]} 39. Nb5 {[%clk 0:00:06.3]}
39... Ke7 {[%clk 0:00:05.4]} 40. Na7 {[%clk 0:00:06.9]} 40... Kd7 {[%clk
0:00:02.5]} 41. Nc6 {[%clk 0:00:06.8]} 41... Rxa8 {[%clk 0:00:02.9]} 42. Ne5+
{[%clk 0:00:06.2]} 42... Kc7 {[%clk 0:00:01.6]} 43. bxa8=Q {[%clk 0:00:06.1]}
43... Rxa8 {[%clk 0:00:02.4]} 44. Bxa8 {[%clk 0:00:06]} 44... Kd6 {[%clk
0:00:03.3]} 45. Nf3 {[%clk 0:00:06.3]} 1-0

[Event "Late-Titled-Tuesday-Blitz-February-13-2024"]
[Site "Chess.com"]
[Date "2024.02.13"]
[Round "4"]
[White "h4parah5"]
[Black "SchmakAttack"]
[Result "1-0"]
[WhiteElo "2970"]
[BlackElo "2793"]
[TimeControl "180+1"]
[EndTime "14:39:05 PST"]
[Termination "h4parah5 won by resignation"]

1. Nf3 {[%clk 0:03:00.9]} 1... d5 {[%clk 0:02:58.1]} 2. e3 {[%clk 0:02:59.3]}
2... c5 {[%clk 0:02:57.2]} 3. b3 {[%clk 0:02:58.6]} 3... Nc6 {[%clk 0:02:55]} 4.
Bb2 {[%clk 0:02:54.5]} 4... e6 {[%clk 0:02:55]} 5. Bb5 {[%clk 0:02:45]} 5... Ne7
{[%clk 0:02:53.5]} 6. O-O {[%clk 0:02:44.4]} 6... a6 {[%clk 0:02:52.2]} 7. Be2
{[%clk 0:02:44.3]} 7... d4 {[%clk 0:02:40.1]} 8. a4 {[%clk 0:02:43]} 8... g6
{[%clk 0:02:33.2]} 9. Na3 {[%clk 0:02:41.5]} 9... Bg7 {[%clk 0:02:33.2]} 10. Nc4
{[%clk 0:02:40.8]} 10... O-O {[%clk 0:02:11.2]} 11. Re1 {[%clk 0:02:31]} 11...
e5 {[%clk 0:01:51.5]} 12. exd4 {[%clk 0:02:20.4]} 12... cxd4 {[%clk 0:01:41]}
13. Bf1 {[%clk 0:02:19]} 13... f6 {[%clk 0:01:32.1]} 14. a5 {[%clk 0:02:13.7]}
14... Be6 {[%clk 0:01:29]} 15. Ba3 {[%clk 0:02:02.8]} 15... Kh8 {[%clk
0:01:10.6]} 16. Bc5 {[%clk 0:01:42.9]} 16... Rc8 {[%clk 0:00:49.7]} 17. Bb6
{[%clk 0:01:26.9]} 17... Qd7 {[%clk 0:00:45.8]} 18. Bc5 {[%clk 0:01:25.1]} 18...
Qd8 {[%clk 0:00:32.7]} 19. Nb6 {[%clk 0:01:22.5]} 19... Rc7 {[%clk 0:00:27.4]}
20. b4 {[%clk 0:01:15.5]} 20... Re8 {[%clk 0:00:24.6]} 21. c3 {[%clk 0:01:12.6]}
21... dxc3 {[%clk 0:00:11.2]} 22. dxc3 {[%clk 0:01:13.5]} 22... Nd5 {[%clk
0:00:11.6]} 23. Nxd5 {[%clk 0:01:02.5]} 23... Qxd5 {[%clk 0:00:09.9]} 24. Qxd5
{[%clk 0:00:52.5]} 24... Bxd5 {[%clk 0:00:10.8]} 25. Nd2 {[%clk 0:00:52]} 25...
f5 {[%clk 0:00:08.9]} 26. Nc4 {[%clk 0:00:48.8]} 26... e4 {[%clk 0:00:08]} 27.
Nd6 {[%clk 0:00:34.6]} 27... Rf8 {[%clk 0:00:02.7]} 28. Ra3 {[%clk 0:00:30]}
28... Bg8 {[%clk 0:00:02.9]} 29. Nxb7 {[%clk 0:00:20.5]} 29... Rxb7 {[%clk
0:00:02.7]} 30. Bxa6 {[%clk 0:00:19.6]} 30... Rc7 {[%clk 0:00:02.4]} 31. Bxf8
{[%clk 0:00:18.8]} 31... Bxf8 {[%clk 0:00:03.3]} 32. Rb1 {[%clk 0:00:15]} 32...
Ne5 {[%clk 0:00:03.5]} 33. Bf1 {[%clk 0:00:14]} 33... Bc4 {[%clk 0:00:03.4]} 34.
a6 {[%clk 0:00:12.5]} 34... Ra7 {[%clk 0:00:03.1]} 35. Bxc4 {[%clk 0:00:09.9]}
35... Nxc4 {[%clk 0:00:04]} 36. Ra2 {[%clk 0:00:10.6]} 36... Kg7 {[%clk
0:00:03.8]} 37. b5 {[%clk 0:00:09.8]} 37... Bc5 {[%clk 0:00:03.9]} 38. Rd1
{[%clk 0:00:08.8]} 38... e3 {[%clk 0:00:04]} 39. Kf1 {[%clk 0:00:07.8]} 39...
exf2 {[%clk 0:00:03.6]} 40. Rd8 {[%clk 0:00:07.9]} 40... Bb6 {[%clk 0:00:03.8]}
41. Rc8 {[%clk 0:00:08.1]} 41... Ne3+ {[%clk 0:00:03.6]} 42. Kxf2 {[%clk
0:00:08.4]} 42... Kf7 {[%clk 0:00:03.3]} 43. Rc6 {[%clk 0:00:08.1]} 43... Nd5+
{[%clk 0:00:03]} 44. Kf1 {[%clk 0:00:07.6]} 44... Ne3+ {[%clk 0:00:02.6]} 45.
Ke2 {[%clk 0:00:07.6]} 45... Re7 {[%clk 0:00:03.2]} 46. Kd3 {[%clk 0:00:07.6]}
46... Nd5 {[%clk 0:00:03.5]} 47. Kc4 {[%clk 0:00:07.8]} 47... Rd7 {[%clk
0:00:02.8]} 48. Re2 {[%clk 0:00:07.2]} 48... Ne3+ {[%clk 0:00:02.1]} 49. Kb3
{[%clk 0:00:07.1]} 49... Ba7 {[%clk 0:00:02.5]} 50. b6 {[%clk 0:00:06.6]} 50...
Bxb6 {[%clk 0:00:02.6]} 51. Rxb6 {[%clk 0:00:07.5]} 51... Nd5 {[%clk 0:00:03.1]}
52. Rb7 {[%clk 0:00:08]} 1-0